Cogmind - Beta 13 @@@ ROGUE MODE // 2024.05.05 @ 10:48:53 Player: Anonymous_lightbulb Result: Destroyed by G-47 Trooper with Particle Gun Performance ------------- Evolutions (3) 1500 Regions Visited (5) 1000 Robots Destroyed (20) 100 Value Destroyed (338) 338 Prototype IDs (0) 0 Alien Tech Used (0) 0 Bonus (0) 0 TOTAL SCORE: 2938 Bonus ------- None Cogmind --------- Core Integrity 0/700 Matter 141/300 Energy 100/100 System Corruption 0% Temperature Critical (704) Movement Core (200) Ox3 Location -7/Factory Parts ------- > --- POWER (2) -------- (None) > --- PROPULSION (4) --- (None) > --- UTILITY (5) ------ Medium Storage Unit > --- WEAPON (2) ------- (None) > --- INVENTORY (10) --- Light Ion Engine Advanced Treads Advanced Treads Medium Treads Aluminum Leg Aluminum Leg Cesium-ion Thruster Small Laser Plasma Cannon Peak State ------------ > --- POWER ------------ Light Ion Engine Light Ion Engine > --- PROPULSION ------- Advanced Treads Advanced Treads Advanced Treads Advanced Treads > --- UTILITY ---------- Small Storage Unit Medium Storage Unit Hardened Light Armor Plating > --- WEAPON ----------- Heavy Particle Cannon Ion Cannon > --- INVENTORY -------- Light Ion Engine Advanced Treads Advanced Treads Medium Treads Aluminum Leg Aluminum Leg Cesium-ion Thruster Small Laser Plasma Cannon [Rating: 26] Favorites ----------- Power Light Ion Engine Engine Light Ion Engine Propulsion Advanced Treads Treads Advanced Treads Leg Aluminum Leg Flight Unit Flight Unit Utility Small Storage Unit Storage Small Storage Unit Protection Hardened Light Armor Plating Weapon Light Assault Rifle Energy Gun Small Laser Energy Cannon Ion Cannon Ballistic Gun Light Assault Rifle Build | -11 -10 -10 -9 -8 -7 ------- Run | Yrd Mat Min Mat Mat Fac Slots Evolved 6 | . . . 2 2 2 Power 1 | . . . . 1 . Propulsion 2 | . . . 1 . 1 Utility 3 | . . . 1 1 1 Weapon . | . . . . . . Parts Attached 36 | 7 1 1 11 13 3 Power 7 | 2 . . 1 4 . Engine 7 | 2 . . 1 4 . Core . | . . . . . . Reactor . | . . . . . . Propulsion 14 | 2 . . 6 5 1 Treads 8 | 2 . . 2 3 1 Leg 2 | . . . . 2 . Wheel . | . . . . . . Hover . | . . . . . . Flight 4 | . . . 4 . . Utility 10 | 1 1 1 4 2 1 Device . | . . . . . . Storage 7 | 1 1 1 3 1 . Processor . | . . . . . . Hackware . | . . . . . . Protection 3 | . . . 1 1 1 Artifact . | . . . . . . Weapon 5 | 2 . . . 2 1 Energy Gun 1 | . . . . 1 . Energy Cannon 2 | . . . . 1 1 Ballistic Gun 2 | 2 . . . . . Ballistic Cannon . | . . . . . . Launcher . | . . . . . . Special Weapon . | . . . . . . Impact Weapon . | . . . . . . Slashing Weapon . | . . . . . . Piercing Weapon . | . . . . . . Special Melee Weapon . | . . . . . . Unidentified Prototypes . | . . . . . . Parts Lost 20 | . . . 7 3 10 Power 5 | . . . 1 2 2 Propulsion 8 | . . . 4 . 4 Utility 3 | . . . . 1 2 Weapon 4 | . . . 2 . 2 Highest Loss Streak 10 | . . . 7 2 10 To Critical Strikes . | . . . . . . Average Slot Usage (%) 82 | . 95 95 57 71 77 Engine 12 | . 14 14 9 10 14 Treads 24 | . 28 28 12 21 29 Storage 19 | . 23 23 11 17 14 Protection 1 | . . . 1 2 2 Energy Gun 3 | . . . . 8 6 Energy Cannon 2 | . . . . 6 7 Ballistic Gun 15 | . 28 28 17 . . Naked Turns . | . . . . . . Heaviest Build 93 | 13 93 93 19 28 38 Greatest Support 88 | 40 40 40 40 66 88 Greatest Overweight (x) 6 | . 2 2 4 1 6 Average Overweight (x) . | . 1 1 . . . Largest Inventory Capacity 25 | 8 25 25 10 10 10 Average Capacity 14 | 7 19 20 9 9 10 Most Carried 9 | 5 5 5 9 7 9 Average Carried 5 | 3 4 4 6 4 8 Final Capacity 25 | 8 25 10 8 10 10 Final Carried 9 | 4 4 5 6 7 9 Class Distribution -------------------- 97% | Mutant Dominant Class ---------------- Mutant | -10/Materials Mutant | -10/Mines Mutant | -9/Materials Mutant | -8/Materials Mutant | -7/Factory Resources | -11 -10 -10 -9 -8 -7 ----------- Run | Yrd Mat Min Mat Mat Fac Matter Collected 589 | 166 44 146 66 167 . Remotely . | . . . . . . Salvage Created 559 | . 44 183 95 237 . Parts 35 | . 2 8 10 15 . Haulers Intercepted . | . . . . . . Recyclers Shooed . | . . . . . . Parts Field Recycled . | . . . . . . Retrieved Matter . | . . . . . . Parts Self-Destructed . | . . . . . . Prevented . | . . . . . . Kills | -11 -10 -10 -9 -8 -7 ------- Run | Yrd Mat Min Mat Mat Fac Combat Hostiles Destroyed 16 | . 1 3 4 8 . Guns 12 | . 1 3 4 4 . Cannons 4 | . . . . 4 . Classes Destroyed 5 | . 1 2 1 1 . Builder 1 | . . . . 1 . Recycler 3 | . . 1 . 2 . Swarmer 11 | . . 1 3 7 . Grunt 3 | . 1 2 . . . Sentry 2 | . . . 1 1 . Best Kill Streak 8 | . 1 1 4 8 . Combat Bots Only 7 | . 1 1 4 7 . Max Kills in Single Turn 2 | . 1 1 1 2 . Gunslinging . | . . . . . . Exploded . | . . . . . . Melee . | . . . . . . Uniques/NPCs Destroyed . | . . . . . . Combat | -11 -10 -10 -9 -8 -7 -------- Run | Yrd Mat Min Mat Mat Fac Hostile Shots Fired 432 | . 4 57 80 95 196 Missed 106 | . 2 24 22 26 32 Damage Taken 3583 | . 22 294 699 623 1945 Core 1109 | . . 18 265 124 702 Absorbed by Shields . | . . . . . . Core Remaining (%) 75 | 100 . 92 33 77 . Volleys Fired 64 | . 2 17 21 19 5 Largest 2 | . 2 2 1 2 2 Hottest 135 | . 40 40 20 100 135 Shots Fired 102 | . 4 34 21 33 10 Gun 78 | . 4 34 21 19 . Cannon 24 | . . . . 14 10 Launcher . | . . . . . . Special . | . . . . . . Kinetic 59 | . 4 34 21 . . Thermal 43 | . . . . 33 10 Explosive . | . . . . . . Electromagnetic . | . . . . . . Robot Hit Streak 10 | . 1 5 10 6 1 Robot Miss Streak 6 | . 1 6 3 4 5 Penetration Max . | . . . . . . Secondary Targets . | . . . . . . Shots Hit Robots 53 | . 2 17 15 18 1 Core Hits 30 | 1 2 8 6 11 2 Critical Kills . | . . . . . . Critical Parts Destroyed . | . . . . . . Critical Strikes . | . . . . . . Melee Attacks . | . . . . . . Impact . | . . . . . . Slashing . | . . . . . . Piercing . | . . . . . . Sneak Attacks . | . . . . . . Combat Hostiles . | . . . . . . Follow-up Attacks . | . . . . . . Damage Inflicted 919 | 14 21 199 182 373 130 Guns 540 | . 21 176 182 161 . Cannons 306 | . . . . 186 120 Explosions . | . . . . . . Melee . | . . . . . . Ramming 73 | 14 . 23 . 26 10 Kinetic 379 | . 21 176 182 . . Thermal 467 | . . . . 347 120 Explosive . | . . . . . . Electromagnetic . | . . . . . . Impact . | . . . . . . Slashing . | . . . . . . Piercing . | . . . . . . Highest Corruption . | . . . . . . Average Corruption . | . . . . . . Corruption Purged . | . . . . . . Corruption Blocked . | . . . . . . Overload Shots . | . . . . . . Overflow Damage 3 | . . . . 3 . Projectiles 3 | . . . . 3 . Explosions . | . . . . . . Melee . | . . . . . . Knockbacks . | . . . . . . Impact . | . . . . . . Kinetic . | . . . . . . Secondary . | . . . . . . Self-Inflicted Damage . | . . . . . . Shots . | . . . . . . Rammed 12 | 4 . 2 . 5 1 Targets Rammed 14 | 4 . 2 . 7 1 Kicked . | . . . . . . Crushed 2 | . . . . 2 . Highest Temperature 711 | . 6 12 3 175 711 Average Temperature 218 | . 6 7 3 98 479 Received Heat Transfer 1395 | . 12 60 219 54 1050 Effects 7 | . . . . . 7 Energy Bleed 1 | . . . . . 1 Interference 1 | . . . . . 1 Matter Decay 4 | . . . . . 4 Damage (minor) 1 | . . . . . 1 Siege Activations . | . . . . . . Robots Corrupted . | . . . . . . Combat Hostiles . | . . . . . . Parts Fried . | . . . . . . Impact Corruptions . | . . . . . . Robots Melted . | . . . . . . Combat Hostiles . | . . . . . . Parts Melted 2 | . . . . 2 . Heat Transferred 856 | . . . . 671 185 Parts Sabotaged . | . . . . . . Parts Stolen . | . . . . . . Parts Stripped . | . . . . . . Power Chain Reactions . | . . . . . . Alert | -11 -10 -10 -9 -8 -7 ------- Run | Yrd Mat Min Mat Mat Fac Peak Influence 254 | . 20 62 116 254 30 Initial 30 | . . 7 . 25 30 Average 52 | . 9 38 68 122 26 Maximum Alert Level 1 | . . . . 1 . Low Security (%) 94 | 100 100 100 100 72 100 Level 1 5 | . . . . 27 . Level 2 . | . . . . . . Level 3 . | . . . . . . Level 4 . | . . . . . . Level 5 . | . . . . . . High Security . | . . . . . . Max Security . | . . . . . . Squads Dispatched 2 | . . . . 1 1 Investigation 1 | . . . . . 1 Extermination . | . . . . . . Reinforcement 1 | . . . . 1 . Assault . | . . . . . . Garrison . | . . . . . . Intercept . | . . . . . . Searches Triggered . | . . . . . . Construction Impeded . | . . . . . . Haulers Reinforced . | . . . . . . Active Scanning Responses . | . . . . . . Cargo Convoy Interrupts . | . . . . . . Stealth | -11 -10 -10 -9 -8 -7 --------- Run | Yrd Mat Min Mat Mat Fac Distress Signals 2 | . . . . 2 . Communications Jammed . | . . . . . . Distress Signals . | . . . . . . Times Spotted 44 | . 2 5 13 13 11 Peak Tracking Total 11 | . 2 3 11 8 11 Tactical Retreats 1 | . . . . 1 . Traps | -11 -10 -10 -9 -8 -7 ------- Run | Yrd Mat Min Mat Mat Fac Traps Triggered 2 | . . . 1 . 1 Indirectly . | . . . . . . Trap Hack Attempts . | . . . . . . Triggered . | . . . . . . Disarmed . | . . . . . . Reprogrammed . | . . . . . . Reused . | . . . . . . Traps Extracted . | . . . . . . Installed . | . . . . . . Triggered . | . . . . . . Machines | -11 -10 -10 -9 -8 -7 ---------- Run | Yrd Mat Min Mat Mat Fac Machines Disabled . | . . . . . . Max in Single Turn . | . . . . . . Machines Repaired . | . . . . . . Machines Dismantled . | . . . . . . Machines Sabotaged . | . . . . . . Overloaded Fab Kills . | . . . . . . Hacking | -11 -10 -10 -9 -8 -7 --------- Run | Yrd Mat Min Mat Mat Fac Machines Accessed 1 | . . . . 1 . Terminals 1 | . . . . 1 . Fabricators . | . . . . . . Repair Stations . | . . . . . . Recycling Units . | . . . . . . Scanalyzers . | . . . . . . Garrison Access . | . . . . . . Total Hacks 2 | . . . . 2 . Successful 1 | . . . . 1 . Failed 1 | . . . . 1 . Catastrophic 1 | . . . . 1 . Database Lockouts . | . . . . . . Manual . | . . . . . . Terminals 2 | . . . . 2 . Fabricators . | . . . . . . Repair Stations . | . . . . . . Recycling Units . | . . . . . . Scanalyzers . | . . . . . . Garrison Access . | . . . . . . Terminal Hacks 1 | . . . . 1 . Recall Reinforcements 1 | . . . . 1 . Fabricator Hacks . | . . . . . . Repair Station Hacks . | . . . . . . Recycling Unit Hacks . | . . . . . . Scanalyzer . | . . . . . . Garrison Access Hacks . | . . . . . . Unauthorized Hacks . | . . . . . . Terminals . | . . . . . . Fabricators . | . . . . . . Repair Stations . | . . . . . . Recycling Units . | . . . . . . Scanalyzers . | . . . . . . Garrison Access . | . . . . . . Data Cores Recovered . | . . . . . . Used . | . . . . . . Hacking Detections 1 | . . . . 1 . Full Trace Events . | . . . . . . Feedback Events . | . . . . . . Feedback Blocked . | . . . . . . Robot Schematics Acquired . | . . . . . . Robots Built . | . . . . . . Authchips . | . . . . . . Time . | . . . . . . Total Robot Build Rating . | . . . . . . Part Schematics Acquired . | . . . . . . Parts Built . | . . . . . . Authchips . | . . . . . . Time . | . . . . . . Total Part Build Rating . | . . . . . . Parts Repaired . | . . . . . . Time . | . . . . . . Parts Recycled . | . . . . . . Recycled Matter . | . . . . . . Retrieved Matter . | . . . . . . Retrieved Components . | . . . . . . Parts Scanalyzed . | . . . . . . Part Schematics Acquired . | . . . . . . Parts Damaged . | . . . . . . Bothacking | -11 -10 -10 -9 -8 -7 ------------ Run | Yrd Mat Min Mat Mat Fac Used RIF Installer . | . . . . . . Robots Hacked . | . . . . . . Non-combat . | . . . . . . Combat . | . . . . . . Robot Hacks Applied . | . . . . . . Relay Couplers Released . | . . . . . . Fabnet Peak Effective % . | . . . . . . Robots Rewired . | . . . . . . Allies Hacked . | . . . . . . Hacks Repelled . | . . . . . . Allies | -11 -10 -10 -9 -8 -7 -------- Run | Yrd Mat Min Mat Mat Fac Total Allies . | . . . . . . Largest Group . | . . . . . . Highest-Rated Group . | . . . . . . Highest-Rated Ally . | . . . . . . Total Orders . | . . . . . . Ally Attacks . | . . . . . . Total Damage . | . . . . . . Kills . | . . . . . . Allies Corrupted . | . . . . . . Allies Melted . | . . . . . . Intel | -11 -10 -10 -9 -8 -7 ------- Run | Yrd Mat Min Mat Mat Fac Robot Analysis Total . | . . . . . . Derelict Logs Recovered 2 | . . 2 . . . Drone Launches . | . . . . . . Drone Recoveries . | . . . . . . Exploration | -11 -10 -10 -9 -8 -7 ------------- Run | Yrd Mat Min Mat Mat Fac Turns Passed 2453 | 120 174 925 307 481 446 Spaces Moved 1241 | 76 70 358 180 269 288 Core 48 | 21 . . 21 1 5 Treads 1060 | 55 70 358 84 210 283 Legs 58 | . . . . 58 . Wheels . | . . . . . . Hover . | . . . . . . Flight 75 | . . . 75 . . Fastest Speed 37 | 50 160 160 37 100 145 Average Speed 176 | 129 242 243 137 140 146 Slowest Speed 350 | 160 320 320 250 190 350 Overloaded Moves . | . . . . . . Propulsion Burnouts . | . . . . . . Robots Hopped . | . . . . . . Cave-ins Triggered . | . . . . . . Exploration Rate (%) 23 | 5 19 72 16 20 6 Regions Visited 5 Branch Regions 1 Pre-discovered Areas . | . . . . . . Known Exits Taken . | . . . . . . Unknown Exits Taken 5 | 1 1 1 1 1 . Scrap Searched 2 | . . 2 . . . Spaces Dug . | . . . . . . Terrain Destroyed 4 | . . . . 4 . Melee . | . . . . . . Projectile 4 | . . . . 4 . AOE . | . . . . . . Terrain Rammed . | . . . . . . Walls Destroyed . | . . . . . . Machines Disabled . | . . . . . . Actions | -11 -10 -10 -9 -8 -7 --------- Run | Yrd Mat Min Mat Mat Fac Total 1397 | 94 73 379 215 335 301 Wait 16 | . . . . 16 . Move 1236 | 75 69 357 179 268 288 Hop . | . . . . . . Pick Up 30 | 8 1 1 4 12 4 Fast Attach 2 | 2 . . . . . Attach 21 | 4 1 . 3 11 2 Detach . | . . . . . . Swap 13 | 1 . 1 8 2 1 Drop 1 | . . 1 . . . Fire 64 | . 2 17 21 19 5 Melee . | . . . . . . Ram . | . . . . . . Kick . | . . . . . . Crush 14 | 4 . 2 . 7 1 Escape Stasis . | . . . . . . Rewire . | . . . . . . Trap . | . . . . . . Miscellaneous . | . . . . . . Route ------- -11/Scrapyard -10/Materials -10/Mines -9/Materials -8/Materials -7/Factory (discovered 1 exit: Sto) History --------- Turn | Location | Event 7 | -11/Scrapyard | Discovered new exit (range 15) 121 | -11/Scrapyard | Entered Materials 244 | -10/Materials | Discovered new exit (range 10) 295 | -10/Materials | Entered Mines 312 | -10/Mines | Build established: Mutant 343 | -10/Mines | Met a Derelict bent on vengeance 769 | -10/Mines | Learned Materials garrison access intel 1102 | -10/Mines | Received a Rocket Launcher from a helpful Derelict 1173 | -10/Mines | Discovered new exit (range 12) 1220 | -10/Mines | Entered Materials 1220 | -9/Materials | Evolved 2 slots: Propulsion x1, Utility x1 1515 | -9/Materials | Core integrity fell below 50% 1523 | -9/Materials | Discovered new exit (range 3) 1527 | -9/Materials | Entered another Materials area 1527 | -8/Materials | Evolved 2 slots: Power x1, Utility x1 1528 | -8/Materials | Loaded intel: 1 garrison access location 1542 | -8/Materials | Lost 7 parts (1p4n2w) 1833 | -8/Materials | Destroyed 7 combat bots 1986 | -8/Materials | Discovered new exit (range 15) 2008 | -8/Materials | Entered Factory 2008 | -7/Factory | Evolved 2 slots: Propulsion x1, Utility x1 2009 | -7/Factory | Identified exit to Storage 2449 | -7/Factory | Core integrity fell below 50% 2452 | -7/Factory | Core integrity fell below 20% 2454 | -7/Factory | Destroyed by G-47 Trooper with Particle Gun Last Messages --------------- Overheating: System interference. Ion Cannon temporarily disabled. Ion Cannon destroyed. Critical hit (Burn: +37). Adv. Treads destroyed. Critical hit (Burn: +37). Overheating: Sml. Storage Unit damaged (-18). K-01 Serf collects debris. Hvy. Particle Cannon destroyed. Overheating: Energy bleed (-14). K-01 Serf collects debris. Overheating: Matter decay (-37). Sml. Storage Unit destroyed. Overheating: Matter decay (-34). Critical hit (Burn: +37). Overheating: Matter decay (-41). R-06 Scavenger collects Aluminum Leg. Critical hit (Burn: +37). K-01 Serf collects debris. R-06 Scavenger collects Lgt. Nuclear Core. Map ----- +----------------------------------------------------+ | | | | | | | | | | | | | | | ?????????????????????????????????????????????????? | | ?????????????????????????????????????????????????? | | #######??????????????????????????????????????????? | | #??###############?????????????????????????? | | #??# + #?????????????????????????? | | #??# # #?????????????????????????? | | " """ #??# # ""#?????????????????????????? | | " """ #### # ""#?????????????????????????? | | " """ + + ] T"#?????????????????????????? | | # # / ""#?????????????????????????? | | # # ""#?????????????????????????? | | ####### # #?????????????????????????? | | # ###########?????????????????????????? | | ####????????????????????????????????? | | """#?????????####+#####?????????????? | | """ """ !!! """########## #?????????????? | | """ """ !! F"# ] #?????????????? | | """ """ !! ""# ggg #?????????????? | | #### g @ #?????????????? | | #??# g #?????????????? | | #??# k g Y #?????????????? | | !#### r rgg #?????????????? | | / #?????????????? | | #########g#### ! #?????????????? | | ########### #??????? ??## ###?????????????? | | ??????????# #?????? """#?? #???????????????? | | ???????####+###### """#?? #???????????????? | | ???????# # "#??? +???????????????? | | ???????# # "F????? #???????????????? | | ???????# # "??????? #???????????????? | | ???????# # ??????? #???????????????? | | ???????########### ???????? ????????????????? | | ?????????????????? ??????????????????????????? | | ???????????????????? ""??????????????????????????? | | ?????????????????????????????????????????????????? | | ?????????????????????????????????????????????????? | | ?????????????????????????????????????????????????? | | ?????????????????????????????????????????????????? | | ?????????????????????????????????????????????????? | | ?????????????????????????????????????????????????? | | ?????????????????????????????????????????????????? | | ?????????????????????????????????????????????????? | | ?????????????????????????????????????????????????? | +----------------------------------------------------+ Best States ------------- Heat Dissipation 34 Energy Generation 15 Energy Capacity 275 Matter Stores 300 Matter Capacity 300 Sight Range 16 Terrain Scan Density 10 Armor Coverage 150 Evasion (%) 62 Recoil Reduction 4 Item Schematics ----------------- None Robot Schematics ------------------ None Fabricated ------------ Nothing Alien Tech Used ----------------- None Achievements -------------- GoHome() Challenges ------------ None Game ------ Seed ArchitectChromaticReactor Manual? 0 Play Time 00:17:29 Cumulative 2.9 hours Start 2024.05.05 @ 10:31:33 End 2024.05.05 @ 10:48:53 Sessions 1 Manual Loads 0 Difficulty Rogue Special Mode None Game No. 13 Rogue 13 Adventurer 0 Explorer 0 Win Type - Total 0 Types 0/0/0/0/0/0/0/0/0 Lore% 3 Gallery% 7 Achievement% 8 Wizard Run 0 Options --------- Layout 1 ASCII 0 Keyboard 0 Movement Arrows Keybinds 0 Fullscreen 1 Font 24/Smallcaps Map View 50x40 Zoom Use 0% Tactical HUD 0 Map Filters NONE Filters NONE Steam 1 RUN: 79929529-6a5b-4909-b959-9c4e2b655808